bitfinex-derivatives/quotes_SOLF0:USTF0_20250530
["timestamp","ask_amount","ask_price","bid_price","bid_amount"]
[1748582306205,36.66677291,165.41,165.3,30.1]
[1748582306511,0.04649173,165.37,165.33,0.03828804]
[1748582307208,6.0469,165.34,165.33,0.03828804]
[1748582310215,6.0478,165.32,165.3,30.1]
[1748582313714,6.09086168,165.33,165.3,36.1484]
[1748582315420,6.0477,165.32,165.3,30.1]
[1748582317621,6.09086168,165.33,165.3,36.1483]
[1748582320225,6.0476,165.32,165.3,36.1483]
[1748582322623,0.04346168,165.33,165.3,36.66677291]
[1748582322928,1.9799,165.42,165.3,36.66677291]
[1748582323229,1.9799,165.42,165.33,6.56677291]
[1748582323430,1.9799,165.42,165.34,30.12]
[1748582323931,6.0452,165.39,165.36,4.25477408]
[1748582324319,6.0452,165.39,165.36,0.04560553]
[1748582324630,6.0455,165.38,165.36,4.25477408]
[1748582326033,6.0455,165.38,165.36,0.04560553]
[1748582337144,6.0455,165.38,165.36,6.09180553]
[1748582338930,6.0452,165.39,165.36,6.09180553]
[1748582340237,0.04547835,165.4,165.37,6.0455]
[1748582340844,6.09017835,165.4,165.37,6.0455]
[1748582342645,0.04547835,165.4,165.39,6.0451]
[1748582344441,0.04547835,165.4,165.38,36.1053]
[1748582346044,0.04547835,165.4,165.38,40.31408243]
[1748582348744,0.04547835,165.4,165.39,6.0451]
[1748582352350,122.5294408,165.46,165.41,6.0443]
[1748582352550,122.5294408,165.46,165.41,10.25308243]
[1748582352752,1.9532,165.47,165.41,10.25308243]
[1748582353049,6.0435,165.44,165.41,4.20878243]
[1748582353447,6.08465627,165.44,165.41,4.24986869]
[1748582355855,6.08465627,165.44,165.41,10.29416869]
[1748582357456,6.08465627,165.44,165.41,4.24986869]
[1748582358558,6.08465627,165.44,165.41,10.29416869]
[1748582358757,6.0437,165.43,165.41,4.24986869]
[1748582360059,6.08455627,165.44,165.41,10.29416869]
[1748582360458,6.08455627,165.44,165.41,4.24986869]
[1748582360762,6.0437,165.43,165.41,4.24986869]
[1748582363570,0.04115627,165.44,165.41,4.24986869]
[1748582364664,6.044,165.42,165.41,4.24986869]
[1748582365373,6.044,165.42,165.41,0.04108626]
[1748582369072,6.0437,165.43,165.41,0.04108626]
[1748582370969,6.08455627,165.44,165.41,10.29416869]
[1748582371474,6.08455627,165.44,165.41,4.24986869]
[1748582374974,6.0436,165.43,165.41,4.24986869]
[1748582375182,0.04115627,165.44,165.41,0.04108626]
[1748582375876,6.044,165.42,165.41,0.04108626]
[1748582378683,0.04115627,165.44,165.41,0.04108626]
[1748582380085,6.0436,165.43,165.41,0.04108626]
[1748582380787,6.08445627,165.44,165.41,6.08538626]
[1748582382187,0.04115627,165.44,165.41,6.08538626]
[1748582382375,0.04115627,165.44,165.42,4.20878243]
[1748582384588,0.04115627,165.44,165.42,34.06878243]
[1748582386186,6.08455627,165.44,165.42,29.86]
[1748582389489,0.04115627,165.44,165.43,4.20878243]
[1748582389696,8.29258243,165.51,165.43,4.20878243]
[1748582390087,6.0424,165.47,165.43,10.25218243]
[1748582390592,6.0425,165.46,165.43,10.29342287]
[1748582391994,6.08243855,165.47,165.43,10.29342287]
[1748582392194,6.08243855,165.47,165.44,6.0431]
[1748582393206,6.08243855,165.47,165.43,10.29352287]
[1748582393790,6.0426,165.46,165.43,10.29352287]
[1748582397003,6.08243855,165.47,165.43,10.29352287]
[1748582397204,6.08243855,165.47,165.44,6.0432]
[1748582397804,6.08243855,165.47,165.43,10.29352287]
[1748582398909,6.0426,165.46,165.43,10.29352287]
[1748582399398,0.04013855,165.47,165.46,6.0425]
[1748582399701,6.0407,165.51,165.46,6.0425]
[1748582399702,6.0407,165.51,165.46,29.92]
[1748582399901,6.0407,165.51,165.49,4.20878243]
[1748582400999,4.20878243,165.51,165.46,29.92]
[1748582401205,4.20878243,165.51,165.44,4.20878243]
[1748582401206,4.0005,165.5,165.44,4.20878243]
[1748582401500,4.0005,165.5,165.43,29.92]
[1748582401501,4.0005,165.5,165.46,4.20878243]
[1748582401910,2.1167,165.54,165.48,4.20878243]
[1748582402097,0.04415078,165.53,165.49,0.03918224]
[1748582402409,6.0406,165.52,165.49,0.03918224]
[1748582403303,0.04415078,165.53,165.5,4.20878243]
[1748582403503,3.9578,165.56,165.52,4.20878243]
[1748582404003,3.9578,165.56,165.51,29.92]
[1748582404703,6.0398,165.54,165.52,0.04584402]
[1748582405701,6.04,165.53,165.52,0.04584402]
[1748582406502,6.0397,165.54,165.52,0.04584402]
[1748582407905,6.04,165.53,165.52,0.04584402]
[1748582408707,6.0397,165.54,165.52,0.04584402]
[1748582409708,6.04,165.53,165.52,0.04584402]
[1748582418013,6.0397,165.54,165.52,0.04584402]
[1748582419914,6.04,165.53,165.52,0.04584402]
[1748582424817,6.0397,165.54,165.52,0.04584402]
[1748582425517,6.04,165.53,165.52,0.04584402]
[1748582425718,0.04480281,165.55,165.52,0.04584402]
[1748582425919,0.04480281,165.55,165.52,29.88584402]
[1748582426107,0.04480281,165.55,165.53,4.20210106]
[1748582427217,6.08410281,165.55,165.53,4.20210106]
[1748582429716,0.04480281,165.55,165.52,29.88584402]
[1748582430115,0.04480281,165.55,165.52,0.04584402]
[1748582431017,6.04,165.53,165.52,4.24794508]
[1748582431414,0.04480281,165.55,165.52,4.24794508]
[1748582431619,6.0397,165.54,165.52,4.24794508]
[1748582431814,0.04480281,165.55,165.52,0.04584402]
[1748582432019,0.04480281,165.55,165.54,4.20210106]
[1748582432315,6.08430281,165.55,165.54,4.20210106]
[1748582433623,6.0397,165.54,165.52,4.24794508]
[1748582434719,6.04,165.53,165.52,4.24794508]
[1748582435714,6.04,165.53,165.52,0.04584402]
[1748582440532,4.20210106,165.54,165.46,29.84]
[1748582440827,6.25060106,165.52,165.46,29.84]
[1748582441633,6.0421,165.47,165.46,29.84]
[1748582441834,0.04453964,165.51,165.46,29.84]
[1748582442132,0.04453964,165.51,165.47,4.20210106]
[1748582442730,6.08553964,165.51,165.48,6.0417]
[1748582442927,0.04453964,165.51,165.48,6.0417]
[1748582443135,0.04453964,165.51,165.49,4.20210106]
[1748582443337,0.04453964,165.51,165.49,10.24340106]
[1748582444036,0.04453964,165.51,165.49,6.0413]
[1748582444629,6.08533964,165.51,165.48,0.0438199]
[1748582446437,6.08533964,165.51,165.48,6.0854199]
[1748582447932,6.08533964,165.51,165.48,0.0438199]
[1748582452745,0.04453964,165.51,165.48,6.0854199]
[1748582453549,6.08533964,165.51,165.48,0.0438199]
[1748582453737,0.04453964,165.51,165.48,0.0438199]
[1748582454245,6.0413,165.5,165.48,0.0438199]
[1748582456149,6.0414,165.49,165.48,0.0438199]
[1748582459947,0.04453964,165.51,165.48,0.0438199]
[1748582460154,158.76404531,165.62,165.49,6.56773524]
[1748582460352,6.0412,165.61,165.5,29.82]
[1748582460553,6.0386,165.57,165.53,6.0396]
[1748582460853,6.0412,165.61,165.53,6.0396]
[1748582461250,0.03858373,165.59,165.55,0.04479164]
[1748582461642,6.0384,165.58,165.55,0.04479164]
[1748582461844,0.03858373,165.59,165.55,0.04479164]
[1748582462249,6.0382,165.58,165.55,0.04479164]
[1748582462645,0.03858373,165.59,165.55,0.04479164]
[1748582462851,0.03858373,165.59,165.56,6.0388]
[1748582463552,6.07638373,165.59,165.55,6.08389164]
[1748582464155,6.0382,165.58,165.55,0.04479164]
[1748582466756,6.07638373,165.59,165.55,6.08379164]
[1748582467056,0.03858373,165.59,165.55,6.08379164]
[1748582467360,6.0388,165.57,165.55,0.04479164]
[1748582470564,6.0389,165.56,165.55,0.04479164]
[1748582470952,6.0398,165.54,165.5,12.60873524]
[1748582471258,6.0398,165.54,165.51,29.82]
[1748582472065,6.08229482,165.54,165.51,29.86119154]
[1748582472356,6.08229482,165.54,165.51,35.90179154]
[1748582472560,6.08229482,165.54,165.51,29.86119154]
[1748582472759,6.04,165.53,165.51,29.86119154]
[1748582473066,0.04249482,165.54,165.51,29.86119154]
[1748582473455,6.08239482,165.54,165.51,29.86119154]
[1748582475867,6.08239482,165.54,165.51,35.90189154]
[1748582476672,6.08239482,165.54,165.51,29.86119154]
[1748582477272,6.04,165.53,165.51,29.86119154]
[1748582477569,0.04249482,165.54,165.51,29.86119154]
[1748582477866,0.04249482,165.54,165.52,6.0401]
[1748582478367,0.04249482,165.54,165.51,29.86119154]
[1748582478870,0.04249482,165.54,165.53,6.04]
[1748582479166,6.0412,165.61,165.52,6.56773524]
[1748582479565,6.038,165.59,165.55,6.0389]
[1748582479763,6.038,165.59,165.55,35.8589]
[1748582479964,6.038,165.59,165.56,6.0388]
[1748582480269,6.08308594,165.59,165.56,6.08327269]
[1748582482270,6.08308594,165.59,165.56,0.04447269]
[1748582483470,6.0382,165.58,165.56,0.04447269]
[1748582486565,6.0385,165.57,165.56,0.04447269]
[1748582487465,6.0398,165.54,165.52,29.9]
[1748582488070,6.0394,165.55,165.52,29.9]
[1748582488470,6.08335642,165.55,165.52,35.98238735]
[1748582489470,6.0396,165.54,165.52,29.94208735]
[1748582491683,6.04,165.53,165.52,29.94208735]
[1748582492966,6.04,165.53,165.52,0.04208735]
[1748582493371,3.9704,165.54,165.46,29.9]
[1748582493562,1.9512,165.53,165.46,29.9]
[1748582493769,6.042,165.48,165.46,29.9]
[1748582494072,1.9512,165.53,165.46,29.9]
[1748582494272,0.03851907,165.51,165.48,0.04005007]
[1748582494974,6.0417,165.49,165.48,0.04005007]
[1748582504185,6.0412,165.5,165.48,0.04005007]
[1748582504380,0.03851907,165.51,165.48,0.04005007]
[1748582504882,0.03851907,165.51,165.49,6.0411]
[1748582505489,0.03851907,165.51,165.48,0.04005007]
[1748582505490,0.03851907,165.51,165.5,35.9411]
[1748582506076,0.03851907,165.51,165.5,29.9]
[1748582507084,0.03851907,165.51,165.5,35.9411]
[1748582507782,0.03851907,165.51,165.5,29.9]
[1748582508683,6.07921907,165.51,165.5,29.9]
[1748582520492,6.07921907,165.51,165.48,0.04005007]
[1748582520493,6.0414,165.49,165.48,0.04005007]
[1748582521387,6.0411,165.5,165.48,0.04005007]
[1748582523688,6.07931907,165.51,165.48,6.08165007]
[1748582523894,0.03851907,165.51,165.48,6.08165007]
[1748582524992,0.03851907,165.51,165.49,29.9]
[1748582525193,6.07931907,165.51,165.49,29.9]
[1748582525899,6.0411,165.5,165.49,29.9]
[1748582526193,0.03851907,165.51,165.49,29.9]
[1748582527098,6.07941907,165.51,165.49,29.9]
[1748582527897,6.0411,165.5,165.49,29.9]
[1748582530301,6.0414,165.49,165.48,0.04005007]
[1748582534209,6.0414,165.49,165.48,5.007e-05]
[1748582539006,0.03851907,165.51,165.48,5.007e-05]
[1748582539208,0.03851907,165.51,165.48,6.04185007]
[1748582541610,6.07921907,165.51,165.48,5.007e-05]
[1748582544812,0.03851907,165.51,165.48,5.007e-05]
[1748582546005,6.0414,165.49,165.48,5.007e-05]
[1748582595732,6.0412,165.5,165.48,5.007e-05]
[1748582595939,0.03851907,165.51,165.48,5.007e-05]
[1748582596248,0.03851907,165.51,165.49,4.20487489]
[1748582596938,34.02487489,165.58,165.49,120.36487489]
[1748582596939,29.82,165.58,165.49,120.36487489]
[1748582597238,6.26417489,165.6,165.53,4.20487489]
[1748582597439,6.0391,165.56,165.53,4.20487489]
[1748582598139,6.08093858,165.56,165.53,4.24762902]
[1748582598340,6.0392,165.55,165.53,4.24762902]
[1748582598539,0.04183858,165.56,165.53,4.24762902]
[1748582600140,0.04183858,165.56,165.53,0.04275413]
[1748582600747,6.0392,165.55,165.53,0.04275413]
[1748582602941,6.0396,165.54,165.53,0.04275413]
[1748582608453,6.0392,165.55,165.53,0.04275413]
[1748582609751,6.08073858,165.56,165.53,0.04275413]
[1748582610148,0.04183858,165.56,165.53,0.04275413]
[1748582610354,0.04183858,165.56,165.53,6.60579589]
[1748582611949,0.04183858,165.56,165.54,6.0393]
[1748582612955,0.04183858,165.56,165.55,6.0392]
[1748582614854,2.0268,165.66,165.57,6.0383]
[1748582615043,2.0268,165.66,165.58,29.88]
[1748582615449,6.037,165.62,165.58,35.9179]
[1748582615746,2.0268,165.66,165.58,29.88]
[1748582615953,6.0371,165.61,165.58,29.92489294]
[1748582616354,0.04578716,165.62,165.58,29.92489294]
[1748582617555,6.0375,165.6,165.58,29.92489294]
[1748582617956,0.04578716,165.62,165.58,35.96299294]
[1748582619057,6.0371,165.61,165.58,35.96299294]
[1748582619258,0.04578716,165.62,165.59,6.0377]
[1748582619958,0.04578716,165.62,165.61,4.1972684]
[1748582621152,6.08248716,165.62,165.61,4.1972684]
[1748582622262,0.04578716,165.62,165.61,4.1972684]
[1748582626565,6.08248716,165.62,165.61,4.1972684]
[1748582627772,0.04578716,165.62,165.61,4.1972684]
[1748582628768,0.04578716,165.62,165.61,10.2342684]
[1748582629068,34.0772684,165.7,165.64,4.1972684]
[1748582629271,6.0356,165.65,165.64,4.1972684]
[1748582629770,34.0772684,165.7,165.64,4.1972684]
[1748582629771,29.88,165.7,165.64,4.1972684]
[1748582629972,6.0355,165.66,165.65,0.040312]
[1748582640080,6.035,165.67,165.65,0.040312]
[1748582640277,0.04633265,165.69,165.65,0.040312]
[1748582640582,6.0352,165.66,165.65,0.040312]
[1748582642978,6.0373,165.61,165.59,29.84]
[1748582643183,3.9447,165.67,165.59,29.84]
[1748582643481,3.9447,165.67,165.61,6.55606853]
[1748582643687,1.9888,165.67,165.62,6.0363]
[1748582643880,0.03996986,165.66,165.63,29.88204776]
[1748582644479,6.0356,165.65,165.63,29.88204776]
[1748582645283,6.07526986,165.66,165.63,35.91824776]
[1748582645586,6.07526986,165.66,165.63,29.88204776]
[1748582646283,6.0356,165.65,165.63,29.88204776]
[1748582647286,6.0359,165.64,165.63,29.88204776]
[1748582648283,6.0359,165.64,165.63,0.04204776]
[1748582648589,0.03996986,165.66,165.63,0.04204776]
[1748582649491,6.07546986,165.66,165.63,0.04204776]
[1748582649689,0.03996986,165.66,165.63,0.04204776]
[1748582650193,0.03996986,165.66,165.63,6.07824776]
[1748582650393,0.03996986,165.66,165.64,29.82]
[1748582651994,6.07526986,165.66,165.64,29.82]
[1748582652592,6.07526986,165.66,165.64,35.8558]
[1748582652593,0.03996986,165.66,165.64,35.8558]
[1748582653088,0.03996986,165.66,165.64,29.82]
[1748582653285,6.0356,165.65,165.63,0.04204776]
[1748582653893,6.0359,165.64,165.63,0.04204776]
[1748582675510,0.03996986,165.66,165.63,0.04204776]
[1748582677312,0.03996986,165.66,165.64,6.0359]
[1748582677510,0.03996986,165.66,165.65,116.2]
[1748582678214,0.03996986,165.66,165.65,122.2356]
[1748582680112,0.03996986,165.66,165.65,116.2]
[1748582687918,0.03996986,165.66,165.65,122.2356]
[1748582690221,0.03996986,165.66,165.65,116.2]
[1748582690720,4.0157,165.75,165.65,116.2]
[1748582690916,4.0157,165.75,165.66,36.39544483]
[1748582691317,6.033,165.72,165.68,6.0342]
[1748582691818,6.07865335,165.72,165.68,6.07268746]
[1748582692320,6.07865335,165.72,165.69,6.0341]
[1748582692521,6.07865335,165.72,165.68,0.03848746]
[1748582692926,0.04565335,165.72,165.68,0.03848746]
[1748582693222,0.04565335,165.72,165.69,6.034]
[1748582693419,0.04565335,165.72,165.7,29.84]
[1748582693619,0.04565335,165.72,165.71,6.0334]
[1748582694125,0.04565335,165.72,165.7,29.84]
[1748582694421,0.04565335,165.72,165.7,35.8734]
[1748582695420,0.04565335,165.72,165.7,29.84]
[1748582695421,6.07865335,165.72,165.7,29.84]
[1748582699828,6.0334,165.71,165.7,29.84]
[1748582700823,6.07885335,165.72,165.7,29.84]
[1748582701229,0.04565335,165.72,165.7,29.84]
[1748582701729,0.04565335,165.72,165.7,35.8735]
[1748582701930,0.04565335,165.72,165.7,29.84]
[1748582702525,6.07885335,165.72,165.7,29.84]
[1748582703325,0.04565335,165.72,165.7,29.84]
[1748582703933,6.07895335,165.72,165.7,29.84]
[1748582704132,0.04565335,165.72,165.7,29.84]
[1748582704836,0.04565335,165.72,165.7,35.8735]
[1748582706433,0.04565335,165.72,165.7,29.84]
[1748582706733,0.04565335,165.72,165.7,35.8737]
[1748582708839,0.04565335,165.72,165.7,29.84]
[1748582709338,6.07895335,165.72,165.7,29.84]
[1748582709637,0.04565335,165.72,165.7,29.84]
[1748582709834,0.04565335,165.72,165.68,0.03848746]
[1748582710136,6.0341,165.69,165.68,0.03848746]
[1748582719453,6.0337,165.71,165.68,0.03848746]
[1748582721549,6.0337,165.71,165.68,6.07288746]
[1748582722149,6.0337,165.71,165.68,0.03848746]
[1748582723149,6.0338,165.7,165.68,0.03848746]
[1748582724346,6.0334,165.71,165.68,0.03848746]
[1748582725353,6.07885335,165.72,165.68,6.07288746]
[1748582725653,0.04565335,165.72,165.68,29.91848746]
[1748582726850,0.04565335,165.72,165.68,0.03848746]
[1748582727057,6.0341,165.69,165.68,0.03848746]
[1748582729554,6.0341,165.69,165.68,8.746e-05]
[1748582749869,6.0341,165.69,165.59,29.98]
[1748582750071,6.0368,165.62,165.59,34.17677985]
[1748582750870,6.0364,165.63,165.59,34.17677985]
[1748582751063,0.04565201,165.62,165.59,34.22309612]
[1748582751671,6.08235201,165.62,165.59,34.22309612]
[1748582753072,0.04565201,165.62,165.59,34.22309612]
[1748582753272,0.04565201,165.62,165.61,4.19677985]
[1748582754072,0.04565201,165.62,165.61,10.23377985]
[1748582756376,0.04565201,165.62,165.61,4.19677985]
[1748582758476,0.04565201,165.62,165.61,10.23377985]
[1748582759084,0.04565201,165.62,165.61,4.19677985]
[1748582759282,0.04565201,165.62,165.6,12.20287985]
[1748582767992,6.08235201,165.62,165.6,4.19677985]
[1748582768784,6.08235201,165.62,165.6,10.23417985]
[1748582768991,0.04565201,165.62,165.6,10.23417985]
[1748582769791,6.08235201,165.62,165.6,4.19677985]
[1748582770891,6.08235201,165.62,165.59,30.02631627]
[1748582770892,0.04565201,165.62,165.59,30.02631627]
[1748582771289,6.0374,165.6,165.59,30.02631627]
[1748582772487,6.0374,165.6,165.59,0.04631627]
[1748582773188,6.0372,165.61,165.59,0.04631627]
[1748582774389,6.08245201,165.62,165.59,0.04631627]
[1748582775087,6.0372,165.61,165.59,0.04631627]
[1748582778197,6.08235201,165.62,165.59,0.04631627]
[1748582778391,0.04565201,165.62,165.59,4.24309612]
[1748582778586,0.04565201,165.62,165.59,10.28079612]
[1748582778790,0.04565201,165.62,165.59,4.24309612]
[1748582779190,0.04565201,165.62,165.6,6.0372]
[1748582779890,0.04565201,165.62,165.61,6.037]
[1748582780195,0.04565201,165.62,165.61,10.23377985]
[1748582790404,4.19677985,165.7,165.61,4.19677985]
[1748582790705,4.19677985,165.7,165.64,4.19677985]
[1748582790905,4.19677985,165.7,165.64,34.01677985]
[1748582791305,6.07962797,165.69,165.65,6.08196747]
[1748582792706,0.04542797,165.69,165.65,0.04646747]
[1748582794005,6.0345,165.68,165.65,0.04646747]
[1748582794207,0.04542797,165.69,165.65,6.08196747]
[1748582794905,6.07962797,165.69,165.66,6.0352]
[1748582795503,6.07962797,165.69,165.65,6.08196747]
[1748582796006,6.0345,165.68,165.65,0.04646747]
[1748582796196,0.04542797,165.69,165.65,0.04646747]
[1748582796197,0.04542797,165.69,165.65,6.08206747]
[1748582796401,0.04542797,165.69,165.65,0.04646747]
[1748582797205,0.04542797,165.69,165.66,6.0349]
[1748582798209,0.04542797,165.69,165.66,10.23167985]
[1748582798813,0.04542797,165.69,165.67,6.0348]
[1748582799000,0.04542797,165.69,165.66,4.19677985]
[1748582799310,6.07952797,165.69,165.65,0.04646747]
[1748582799511,6.07952797,165.69,165.65,6.08176747]
[1748582800811,6.07952797,165.69,165.66,6.0351]
[1748582802415,4.0627,165.71,165.66,6.0351]
[1748582803115,6.0338,165.7,165.67,6.0347]
[1748582803613,0.04335068,165.7,165.69,6.0341]
[1748582803916,0.04335068,165.7,165.66,4.19677985]
[1748582804112,0.04335068,165.7,165.67,6.0345]
[1748582805019,0.04335068,165.7,165.68,6.0344]
[1748582805213,0.04335068,165.7,165.66,4.19677985]
[1748582805713,0.04335068,165.7,165.68,4.19677985]
[1748582807018,0.04335068,165.7,165.68,10.23117985]
[1748582814418,0.04335068,165.7,165.68,6.0344]
[1748582815626,0.04335068,165.7,165.67,10.23147985]
[1748582819027,0.04335068,165.7,165.68,6.0344]
[1748582820434,6.07705068,165.7,165.67,10.23147985]
[1748582820626,0.04335068,165.7,165.67,4.19677985]
[1748582821122,6.0335,165.71,165.68,6.0342]
[1748582822232,6.0337,165.7,165.68,6.07256547]
[1748582822733,0.04050676,165.71,165.68,6.07256547]
[1748582823834,6.07390676,165.71,165.68,6.07256547]
[1748582824734,6.07390676,165.71,165.69,6.0339]
[1748582824735,0.04050676,165.71,165.69,6.0339]
[1748582827335,0.04050676,165.71,165.68,6.07266547]
[1748582827539,6.07400676,165.71,165.68,6.07266547]
[1748582829435,0.04050676,165.71,165.69,6.034]
[1748582832527,6.07390676,165.71,165.69,6.034]
[1748582833534,0.04050676,165.71,165.69,6.034]
[1748582833731,0.04050676,165.71,165.68,29.83836547]
[1748582833935,0.04050676,165.71,165.68,35.87266547]
[1748582834843,6.07410676,165.71,165.68,35.87266547]
[1748582835041,0.04050676,165.71,165.68,35.87266547]
[1748582836239,0.04050676,165.71,165.69,6.0341]
[1748582836841,0.04050676,165.71,165.69,10.23087985]
[1748582842141,0.04050676,165.71,165.7,6.0337]
[1748582843245,0.04050676,165.71,165.69,10.23067985]
[1748582847751,0.04050676,165.71,165.7,6.0337]
[1748582848051,0.04050676,165.71,165.69,4.19677985]
[1748582848554,0.04050676,165.71,165.69,10.23067985]
[1748582849653,0.04050676,165.71,165.7,6.0337]
[1748582851745,0.04050676,165.71,165.69,10.23077985]
[1748582853055,6.07390676,165.71,165.69,10.23077985]
[1748582853960,6.07390676,165.71,165.69,6.034]
[1748582854262,6.07390676,165.71,165.68,40.06602461]
[1748582854458,6.07390676,165.71,165.68,40.06602947]
[1748582855456,6.07390676,165.71,165.69,6.0341]
[1748582855857,0.04050676,165.71,165.69,6.0341]
[1748582856059,0.04050676,165.71,165.68,40.06602947]
[1748582856262,0.04050676,165.71,165.68,35.87266547]
[1748582856458,6.07390676,165.71,165.68,40.06602947]
[1748582860263,0.04050676,165.71,165.68,40.06602947]
[1748582861462,0.04050676,165.71,165.69,6.0341]
[1748582864067,0.04050676,165.71,165.68,40.06602947]
[1748582864665,0.04050676,165.71,165.68,40.06606952]
[1748582867968,0.04050676,165.71,165.69,6.0339]
[1748582871664,0.04050676,165.71,165.68,40.06606952]
[1748582872566,0.04050676,165.71,165.68,35.87266547]
[1748582872865,0.04050676,165.71,165.68,40.06606952]
[1748582876164,0.04050676,165.71,165.69,6.034]
[1748582877367,0.04050676,165.71,165.68,40.06606952]
[1748582879468,0.04050676,165.71,165.68,35.87266547]
[1748582879767,0.04050676,165.71,165.69,6.034]
[1748582880769,0.04050676,165.71,165.68,35.87266547]
[1748582880970,6.07400676,165.71,165.68,35.87266547]
[1748582881165,0.04050676,165.71,165.68,35.87266547]
[1748582881372,0.04050676,165.71,165.69,6.0341]
[1748582881671,0.04050676,165.71,165.68,29.83836547]
[1748582882772,6.07390676,165.71,165.68,29.83836547]
[1748582883666,6.07390676,165.71,165.68,35.87286547]
[1748582884874,6.07390676,165.71,165.68,29.83836547]
[1748582887478,6.07390676,165.71,165.68,35.87276547]
[1748582890583,0.04050676,165.71,165.68,35.87276547]
[1748582891784,0.04050676,165.71,165.68,29.83836547]
[1748582892083,4.19636037,165.7,165.68,0.03836547]
[1748582892278,6.26426037,165.7,165.68,0.03836547]
[1748582892479,8.31266037,165.7,165.68,0.03836547]
[1748582893780,8.31266037,165.7,165.62,29.76]
[1748582893983,10.29716037,165.7,165.62,33.95636037]
[1748582894785,4.19636037,165.68,165.64,0.04210738]
[1748582894979,4.24172438,165.68,165.64,0.04210738]
[1748582895684,6.0356,165.65,165.64,0.04210738]
[1748582903796,0.04536401,165.68,165.64,0.04210738]
[1748582903991,0.04536401,165.68,165.66,4.19636037]
[1748582904192,0.04536401,165.68,165.66,10.23156037]
[1748582904488,0.04536401,165.68,165.66,40.01156037]
[1748582904690,0.04536401,165.68,165.66,33.97636037]
[1748582904894,6.07996401,165.68,165.66,33.97636037]
[1748582906298,0.04536401,165.68,165.66,40.01136037]
[1748582910295,0.04536401,165.68,165.67,6.0348]
[1748582919101,0.04536401,165.68,165.67,4.19636037]
[1748582920500,0.04536401,165.68,165.67,10.23116037]
[1748582924101,0.04536401,165.68,165.67,4.19636037]
[1748582924804,0.04536401,165.68,165.67,10.23116037]
[1748582925303,0.04536401,165.68,165.67,4.19636037]
[1748582926999,6.0348,165.67,165.66,29.78]
[1748582927195,0.04536401,165.68,165.64,4.23846775]
[1748582927395,0.04536401,165.68,165.64,0.04210738]
[1748582928107,6.0356,165.65,165.64,0.04210738]
[1748582931207,0.04536401,165.68,165.64,0.04210738]
[1748582931507,0.04536401,165.68,165.66,4.19636037]
[1748582931805,6.08006401,165.68,165.66,4.19636037]
[1748582933709,0.04536401,165.68,165.66,4.19636037]
[1748582934506,6.08006401,165.68,165.66,4.19636037]
[1748582934904,0.04536401,165.68,165.64,0.04210738]
[1748582935613,6.0356,165.65,165.64,0.04210738]
[1748582938910,4.19636037,165.65,165.57,29.76]
[1748582939112,4.19636037,165.63,165.57,33.95636037]
[1748582939316,4.19636037,165.63,165.57,29.76]
[1748582939516,4.19636037,165.61,165.54,29.76]
[1748582939714,4.19636037,165.61,165.54,33.95636037]
[1748582940110,0.04627189,165.59,165.56,0.03817157]
[1748582940315,0.04627189,165.59,165.58,4.19636037]
[1748582941318,0.04627189,165.59,165.56,4.23453194]
[1748582941920,0.04627189,165.59,165.56,0.03817157]
[1748582942718,0.04627189,165.59,165.56,6.07677157]
[1748582942920,0.04627189,165.59,165.56,0.03817157]
[1748582943418,0.04627189,165.59,165.56,6.07697157]
[1748582943621,0.04627189,165.59,165.56,0.03817157]
[1748582943921,0.04627189,165.59,165.58,6.0381]
[1748582944619,0.04627189,165.59,165.56,0.03817157]
[1748582945324,0.04627189,165.59,165.57,6.0384]
[1748582946024,0.04627189,165.59,165.58,6.0381]
[1748582946225,0.04627189,165.59,165.56,0.03817157]
[1748582947328,0.04627189,165.59,165.57,6.0385]
[1748582950328,0.04627189,165.59,165.56,6.07687157]
[1748582950621,6.08417189,165.59,165.56,0.03817157]
[1748582950824,0.04627189,165.59,165.56,0.03817157]
[1748582951930,6.0385,165.57,165.56,0.03817157]
[1748582953219,6.0382,165.58,165.56,0.03817157]
[1748582953420,0.04627189,165.59,165.56,0.03817157]
[1748582953924,6.08417189,165.59,165.56,0.03817157]
[1748582954434,6.08417189,165.59,165.56,6.07697157]
[1748582955024,6.08417189,165.59,165.56,0.03817157]
[1748582955430,0.04627189,165.59,165.57,6.0382]
[1748582955728,0.04627189,165.59,165.56,0.03817157]
[1748582956027,0.04627189,165.59,165.56,6.07677157]
[1748582956827,0.04627189,165.59,165.57,6.0385]
[1748582957332,0.04627189,165.59,165.58,35.7981]
[1748582960529,2.0687,165.66,165.61,6.037]